fUST/lending_fUST_20240521
["ID","MTS","AMOUNT","RATE_DAILY","PERIOD"]
[327623822,1716256258045,-4443.84,0.00044109,21]
[327623823,1716256258055,-590.21,0.00044109,41]
[327623824,1716256258064,-514.95380785,0.00044109,41]
[327623825,1716256258074,-500.0,0.00044109,41]
[327623826,1716256258083,-500.0,0.00044109,41]
[327623827,1716256258091,-568.3,0.00044109,41]
[327623828,1716256258102,-500.0,0.00044109,41]
[327623829,1716256258111,-500.0,0.00044109,41]
[327623830,1716256258120,-603.81,0.00044109,41]
[327623831,1716256258129,-854.22,0.00044109,41]
[327623832,1716256258139,-1298.13,0.00044109,41]
[327623833,1716256258149,-686.9,0.00044109,41]
[327623834,1716256258158,-500.0,0.00044109,41]
[327623835,1716256258168,-1283.07,0.00044109,41]
[327623836,1716256258177,-500.0,0.00044109,41]
[327623837,1716256258187,-500.0,0.00044109,41]
[327623838,1716256258196,-1928.09,0.00044109,41]
[327623839,1716256258206,-1521.93,0.00044109,41]
[327623840,1716256258215,-500.0,0.00044109,41]
[327623841,1716256258225,-500.0,0.00044109,41]
[327623842,1716256258236,-500.0,0.00044109,41]
[327623843,1716256258245,-500.0,0.00044109,41]
[327623844,1716256258255,-222.85001169,0.00044109,41]
[327623845,1716256258264,-500.0,0.00044109,41]
[327623846,1716256258274,-512.97379326,0.00044109,41]
[327623847,1716256258283,-3265.34,0.00044109,41]
[327623848,1716256258292,-500.0,0.00044109,41]
[327623849,1716256258302,-962.63,0.00044109,41]
[327623850,1716256258311,-500.0,0.00044109,41]
[327623851,1716256258321,-500.0,0.00044109,41]
[327623852,1716256258331,-500.0,0.00044109,41]
[327623853,1716256258340,-19738.08,0.00044109,41]
[327623854,1716256258350,-1091.23560614,0.00044109,41]
[327623855,1716256258360,-375.12485937,0.00044109,41]
[327623856,1716256258370,-500.0,0.00044109,30]
[327623857,1716256258380,-500.0,0.00044109,41]
[327623858,1716256258389,-500.0,0.00044109,41]
[327623859,1716256258399,-711.64,0.00044109,41]
[327623860,1716256258408,-500.0,0.00044109,41]
[327623861,1716256258418,-2017.3,0.00044109,41]
[327623862,1716256258427,-1090.23,0.00044109,41]
[327623863,1716256258436,-1090.8,0.00044109,41]
[327623864,1716256258446,-500.0,0.00044109,41]
[327623865,1716256258455,-774.07,0.00044109,41]
[327623866,1716256258464,-500.0,0.00044109,41]
[327623867,1716256258473,-500.0,0.00044109,41]
[327623868,1716256258483,-2075.97,0.00044109,41]
[327623869,1716256258492,-500.0,0.00044109,41]
[327623870,1716256258502,-500.0,0.00044109,41]
[327623871,1716256258512,-695.68,0.00044109,41]
[327623872,1716256258522,-846.21,0.00044109,41]
[327623873,1716256258534,-500.0,0.00044109,41]
[327623874,1716256258543,-500.0,0.00044109,41]
[327623875,1716256258553,-504.01413724,0.00044109,41]
[327623876,1716256258563,-500.0,0.00044109,41]
[327623877,1716256258572,-500.0,0.00044109,41]
[327623878,1716256258582,-500.0,0.00044109,41]
[327623879,1716256258591,-500.0,0.00044109,41]
[327623880,1716256258602,-346.4431483,0.0004411,2]
[327623881,1716256258611,-500.0,0.00044136,60]
[327623882,1716256258620,-300.66138624,0.00044137,7]
[327623883,1716256258629,-500.0,0.00044164,60]
[327623884,1716256258639,-500.0,0.00044191,60]
[327623885,1716256258649,-500.0,0.00044219,60]
[327623886,1716256258659,-500.0,0.00044246,60]
[327623887,1716256258668,-160.0,0.0004427,4]
[327623888,1716256258677,-500.0,0.00044273,60]
[327623889,1716256258687,-518.36665187,0.00044301,60]
[327623890,1716256258772,-284.98283326,0.00044383,4]
[327623891,1716256258790,-240.86369369,0.00044383,4]
[327623892,1716256258799,-537.10934785,0.00044383,42]
[327623893,1716256258808,-413.66789514,0.00044383,42]
[327623894,1716256258818,-500.0,0.00044383,42]
[327623895,1716256258828,-500.0,0.00044383,42]
[327623896,1716256258837,-500.0,0.00044383,42]
[327623897,1716256258846,-500.0,0.00044383,42]
[327623898,1716256258856,-767.25,0.00044383,42]
[327623899,1716256258865,-500.0,0.00044383,42]
[327623900,1716256258874,-500.0,0.00044383,42]
[327623901,1716256258883,-837.43,0.00044383,42]
[327623902,1716256258892,-650.81,0.00044383,42]
[327623903,1716256258902,-500.0,0.00044383,42]
[327623904,1716256258912,-500.0,0.00044383,42]
[327623905,1716256258921,-500.0,0.00044383,42]
[327623906,1716256258930,-597.94,0.00044383,42]
[327623907,1716256258939,-500.0,0.00044383,42]
[327623908,1716256258948,-500.0,0.00044383,42]
[327623909,1716256258957,-500.0,0.00044383,42]
[327623910,1716256258966,-500.0,0.00044383,42]
[327623911,1716256258975,-500.0,0.00044383,42]
[327623912,1716256258987,-500.0,0.00044383,42]
[327623913,1716256258996,-500.0,0.00044383,42]
[327623914,1716256259005,-500.0,0.00044383,42]
[327623915,1716256259014,-500.0,0.00044383,42]
[327623916,1716256259023,-500.0,0.00044383,42]
[327623917,1716256259033,-603.05893565,0.00044383,42]
[327623918,1716256259042,-500.0,0.00044383,42]
[327623919,1716256259051,-500.0,0.00044383,42]
[327623920,1716256259062,-500.0,0.00044383,42]
[327623921,1716256259071,-500.0,0.00044383,42]
[327623922,1716256259080,-431.02106662,0.00044383,42]
[327623923,1716256259089,-500.0,0.00044383,42]
[327623924,1716256259099,-559.54,0.00044383,42]
[327623925,1716256259108,-622.99,0.00044383,42]
[327623926,1716256259118,-500.0,0.00044383,42]
[327623927,1716256259128,-500.0,0.00044383,42]
[327623928,1716256259137,-500.0,0.00044383,42]
[327623929,1716256259146,-500.0,0.00044383,42]
[327623930,1716256259156,-500.0,0.00044383,42]
[327623931,1716256259165,-500.0,0.00044383,42]
[327623932,1716256259175,-500.0,0.00044383,42]
[327623933,1716256259184,-500.0,0.00044383,42]
[327623934,1716256259194,-500.0,0.00044383,42]
[327623935,1716256259204,-500.0,0.00044383,42]
[327623936,1716256259213,-500.0,0.00044383,42]
[327623937,1716256259223,-789.44,0.00044383,42]
[327623938,1716256259234,-540.7,0.00044383,42]
[327623939,1716256259244,-500.0,0.00044383,42]
[327623940,1716256259253,-596.6,0.00044383,42]
[327623941,1716256259263,-500.0,0.00044383,42]
[327623942,1716256259272,-500.0,0.00044383,42]
[327623943,1716256259282,-702.31,0.00044383,42]
[327623944,1716256259291,-500.0,0.00044383,42]
[327623945,1716256259301,-500.0,0.00044383,42]
[327623946,1716256259311,-985.17,0.00044383,42]
[327623947,1716256259320,-1198.71,0.00044383,42]
[327623948,1716256259330,-500.0,0.00044383,2]
[327623949,1716256259339,-500.0,0.00044383,42]
[327623950,1716256259349,-500.0,0.00044383,42]
[327623951,1716256259358,-500.0,0.00044383,42]
[327623952,1716256259367,-515.9606452,0.00044383,42]
[327623953,1716256259376,-889.02,0.00044383,42]
[327623954,1716256259386,-698.24,0.00044383,42]
[327623955,1716256259395,-500.0,0.00044383,42]
[327623956,1716256259405,-676.37,0.00044383,42]
[327623957,1716256259414,-500.0,0.00044383,42]
[327623958,1716256259424,-522.78851095,0.00044383,42]
[327623959,1716256259438,-724.9,0.00044383,42]
[327623960,1716256259454,-803.48,0.00044383,42]
[327623961,1716256259467,-500.0,0.00044383,42]
[327623962,1716256259478,-500.0,0.00044383,42]
[327623963,1716256259492,-500.0,0.00044383,42]
[327623964,1716256259504,-500.0,0.00044383,42]
[327623965,1716256259524,-500.0,0.00044383,42]
[327623966,1716256259536,-500.0,0.00044383,42]
[327623967,1716256259546,-820.9,0.00044383,42]
[327623968,1716256259556,-500.0,0.00044383,42]
[327623969,1716256259565,-655.92,0.00044383,42]
[327623970,1716256259578,-500.0,0.00044383,42]
[327623971,1716256259588,-500.0,0.00044383,42]
[327623972,1716256259598,-500.0,0.00044383,42]
[327623973,1716256259608,-500.0,0.00044383,42]
[327623974,1716256259618,-671.89,0.00044383,42]
[327623975,1716256259628,-520.46,0.00044383,42]
[327623976,1716256259637,-500.0,0.00044383,42]
[327623977,1716256259647,-554.30366033,0.00044383,42]
[327623978,1716256259656,-723.43,0.00044383,42]
[327623979,1716256259666,-517.19826349,0.00044383,42]
[327623980,1716256259675,-500.0,0.00044383,42]
[327623981,1716256259684,-500.0,0.00044383,42]
[327623982,1716256259693,-949.87,0.00044383,42]
[327623983,1716256259703,-684.86,0.00044383,42]
[327623984,1716256259712,-778.84,0.00044383,42]
[327623985,1716256259722,-723.49,0.00044383,42]
[327623986,1716256259734,-500.0,0.00044383,42]
[327623987,1716256259744,-797.35,0.00044383,42]
[327623988,1716256259754,-861.17,0.00044383,42]
[327623989,1716256259763,-994.81,0.00044383,42]
[327623990,1716256259772,-500.0,0.00044383,42]
[327623991,1716256259781,-736.19,0.00044383,42]
[327623992,1716256259791,-151.73384667,0.00044383,42]
[327623993,1716256259800,-500.0,0.00044383,42]
[327623994,1716256259810,-500.0,0.00044383,42]
[327623995,1716256259819,-585.89,0.00044383,42]
[327623996,1716256259828,-798.18,0.00044383,42]
[327623997,1716256259837,-706.53,0.00044383,42]
[327623998,1716256259846,-500.0,0.00044383,42]
[327623999,1716256259856,-500.0,0.00044383,42]
[327624000,1716256259865,-500.0,0.00044383,42]
[327624001,1716256259874,-500.0,0.00044383,42]
[327624002,1716256259883,-526.95,0.00044383,42]
[327624003,1716256259892,-500.0,0.00044383,42]
[327624004,1716256259901,-500.0,0.00044383,42]
[327624005,1716256259910,-500.0,0.00044383,42]
[327624006,1716256259919,-761.38,0.00044383,42]
[327624007,1716256259928,-699.03,0.00044383,42]
[327624008,1716256259938,-500.0,0.00044383,42]
[327624009,1716256259947,-500.0,0.00044383,42]
[327624010,1716256259956,-668.01,0.00044383,42]
[327624011,1716256259965,-983.04,0.00044383,42]
[327624012,1716256259974,-500.0,0.00044383,42]
[327624013,1716256259985,-500.0,0.00044383,42]
[327624014,1716256259994,-500.0,0.00044383,42]
[327624015,1716256260003,-500.0,0.00044383,42]
[327624016,1716256260012,-640.06,0.00044383,42]
[327624017,1716256260022,-239.75226417,0.00044383,42]
[327624018,1716256260032,-557.05,0.00044383,42]
[327624019,1716256260042,-1324.9,0.00044383,42]
[327624020,1716256260052,-634.01,0.00044383,42]
[327624021,1716256260061,-512.82,0.00044383,42]
[327624022,1716256260070,-655.25,0.00044383,42]
[327624023,1716256260080,-500.0,0.00044383,42]
[327624024,1716256260089,-500.0,0.00044383,42]
[327624025,1716256260099,-533.53618709,0.00044383,42]
[327624026,1716256260108,-500.0,0.00044383,42]
[327624027,1716256260117,-500.0,0.00044383,42]
[327624028,1716256260127,-500.0,0.00044383,42]
[327624029,1716256260136,-820.76,0.00044383,42]
[327624030,1716256260145,-500.0,0.00044383,42]
[327624031,1716256260154,-500.0,0.00044383,42]
[327624032,1716256260164,-500.0,0.00044383,42]
[327624033,1716256260173,-500.0,0.00044383,42]
[327624034,1716256260183,-500.0,0.00044383,42]
[327624035,1716256260192,-500.0,0.00044383,42]
[327624036,1716256260201,-500.0,0.00044383,42]
[327624037,1716256260211,-500.0,0.00044383,42]
[327624038,1716256260220,-1050.19,0.00044383,42]
[327624039,1716256260229,-500.0,0.00044383,42]
[327624040,1716256260241,-500.0,0.00044383,42]
[327624041,1716256260250,-500.0,0.00044383,42]
[327624042,1716256260260,-500.0,0.00044383,42]
[327624043,1716256260269,-500.0,0.00044383,42]
[327624044,1716256260279,-578.19,0.00044383,42]
[327624045,1716256260372,-500.0,0.00044383,42]
[327624046,1716256260383,-500.0,0.00044383,14]
[327624047,1716256260393,-500.0,0.00044383,42]
[327624048,1716256260403,-500.0,0.00044383,2]
[327624049,1716256260412,-500.0,0.00044383,42]
[327624050,1716256260422,-868.84,0.00044383,42]
[327624051,1716256260431,-560.94,0.00044383,42]
[327624052,1716256260441,-500.0,0.00044383,42]
[327624053,1716256260451,-500.0,0.00044383,42]
[327624054,1716256260460,-3015.8,0.00044383,42]
[327624055,1716256260469,-500.0,0.00044383,42]
[327624056,1716256260478,-500.0,0.00044383,42]
[327624057,1716256260489,-500.0,0.00044383,120]
[327624058,1716256260498,-742.5,0.00044383,42]
[327624059,1716256260509,-1312.06,0.00044383,42]
[327624060,1716256260521,-500.0,0.00044383,42]
[327624061,1716256260530,-672.9,0.00044383,42]
[327624062,1716256260539,-500.0,0.00044383,42]
[327624063,1716256260550,-500.0,0.00044383,42]
[327624064,1716256260561,-240.86415537,0.00044383,42]
[327624065,1716256260571,-1721.54,0.00044383,42]
[327624066,1716256260581,-537.17,0.00044383,42]
[327624067,1716256260591,-1288.56,0.00044383,42]
[327624068,1716256260601,-500.0,0.00044383,42]
[327624069,1716256260613,-2966.04,0.00044383,42]
[327624070,1716256260622,-500.0,0.00044383,42]
[327624071,1716256260632,-800.58,0.00044383,42]
[327624072,1716256260641,-519.32,0.00044383,42]
[327624073,1716256260652,-1101.76,0.00044383,42]
[327624074,1716256260663,-571.16,0.00044383,42]
[327624075,1716256260673,-3000.0,0.00044383,30]
[327624076,1716256260683,-500.0,0.00044383,42]
[327624077,1716256260692,-500.0,0.00044383,42]
[327624078,1716256260702,-679.77,0.00044383,42]
[327624079,1716256260712,-500.0,0.00044383,42]
[327624080,1716256260721,-246.48650546,0.00044383,42]
[327624081,1716256260731,-500.0,0.00044383,42]
[327624082,1716256260747,-607.40473771,0.00044383,42]
[327624083,1716256260756,-500.0,0.00044383,42]
[327624084,1716256260765,-3098.74,0.00044383,42]
[327624085,1716256260775,-573.79,0.00044383,42]
[327624086,1716256260785,-513.24124246,0.00044383,42]
[327624087,1716256260794,-526.12017355,0.00044383,42]
[327624088,1716256260803,-740.22,0.00044383,42]
[327624089,1716256260812,-500.0,0.00044383,42]
[327624090,1716256260822,-946.03,0.00044383,42]
[327624091,1716256260831,-520.3,0.00044383,42]
[327624092,1716256260841,-500.0,0.00044383,42]
[327624093,1716256260851,-683.12,0.00044383,42]
[327624094,1716256260861,-1857.09,0.00044383,42]
[327624095,1716256260871,-815.0,0.00044383,42]
[327624096,1716256260880,-500.0,0.00044383,42]
[327624097,1716256260890,-504.58,0.00044383,42]
[327624098,1716256260900,-500.0,0.00044383,42]
[327624099,1716256260910,-725.35,0.00044383,42]
[327624100,1716256260919,-758.0,0.00044383,42]
[327624101,1716256260929,-1095.12,0.00044383,42]
[327624102,1716256260939,-10687.91,0.00044383,42]
[327624103,1716256260950,-1953.62,0.00044383,42]
[327624104,1716256260960,-3071.22,0.00044383,7]
[327624105,1716256260970,-500.0,0.00044383,42]
[327624106,1716256260979,-621.32,0.00044383,42]
[327624107,1716256260992,-871.95,0.00044383,7]
[327624108,1716256261002,-500.0,0.00044383,42]
[327624109,1716256261013,-711.26,0.00044383,42]
[327624110,1716256261023,-500.0,0.00044383,42]
[327624111,1716256261033,-779.29,0.00044383,42]
[327624112,1716256261043,-500.0,0.00044383,42]
[327624113,1716256261053,-500.0,0.00044383,42]
[327624114,1716256261062,-500.0,0.00044383,42]
[327624115,1716256261071,-500.0,0.00044383,42]
[327624116,1716256261081,-702.98,0.00044383,42]
[327624117,1716256261090,-746.5,0.00044383,42]
[327624118,1716256261099,-500.0,0.00044383,42]
[327624119,1716256261108,-4569.8,0.00044383,42]
[327624120,1716256261118,-500.0,0.00044383,42]
[327624121,1716256261127,-558.71,0.00044383,42]
[327624122,1716256261136,-500.0,0.00044383,42]
[327624123,1716256261146,-655.44,0.00044383,42]
[327624124,1716256261155,-979.85,0.00044383,42]
[327624125,1716256261165,-616.35,0.00044383,42]
[327624126,1716256261174,-500.0,0.00044383,42]
[327624127,1716256261183,-500.0,0.00044383,42]
[327624128,1716256261192,-500.0,0.00044383,42]
[327624129,1716256261201,-860.47,0.00044383,42]
[327624130,1716256261210,-500.0,0.00044383,42]
[327624131,1716256261219,-701.3,0.00044383,42]
[327624132,1716256261229,-621.4,0.00044383,42]
[327624133,1716256261240,-500.0,0.00044383,42]
[327624134,1716256261248,-500.0,0.00044383,42]
[327624135,1716256261257,-5043.45,0.00044383,42]
[327624136,1716256261267,-500.0,0.00044383,42]
[327624137,1716256261276,-500.0,0.00044383,42]
[327624138,1716256261285,-500.0,0.00044383,42]
[327624139,1716256261294,-680.66,0.00044383,42]
[327624140,1716256261303,-905.75,0.00044383,42]
[327624141,1716256261313,-500.0,0.00044383,42]
[327624142,1716256261322,-668.38,0.00044383,42]
[327624143,1716256261331,-500.0,0.00044383,42]
[327624144,1716256261341,-500.0,0.00044383,42]
[327624145,1716256261349,-4536.56,0.00044383,42]
[327624146,1716256261358,-960.25,0.00044383,42]
[327624147,1716256261367,-500.0,0.00044383,42]
[327624148,1716256261377,-634.52,0.00044383,42]
[327624149,1716256261386,-530.04,0.00044383,42]
[327624150,1716256261395,-500.0,0.00044383,42]
[327624151,1716256261404,-500.0,0.00044383,42]
[327624152,1716256261413,-500.0,0.00044383,42]
[327624153,1716256261423,-500.0,0.00044383,42]
[327624154,1716256261432,-1213.79,0.00044383,42]
[327624155,1716256261441,-815.37,0.00044383,42]
[327624156,1716256261450,-697.34,0.00044383,42]
[327624157,1716256261460,-500.0,0.00044383,42]
[327624158,1716256261469,-500.0,0.00044383,42]
[327624159,1716256261479,-704.21,0.00044383,42]
[327624160,1716256261491,-500.0,0.00044383,20]
[327624161,1716256261500,-543.69,0.00044383,42]
[327624162,1716256261511,-569.46262789,0.00044383,42]
[327624163,1716256261521,-500.0,0.00044383,42]
[327624164,1716256261535,-1357.0,0.00044383,42]
[327624165,1716256261545,-300.0,0.00044383,7]
[327624166,1716256261555,-4443.84,0.00044383,21]
[327624167,1716256261565,-590.21,0.00044383,42]
[327624168,1716256261574,-222.81912162,0.00044383,42]
[327624169,1716256261583,-500.0,0.00044383,42]
[327624170,1716256261592,-568.3,0.00044383,42]
[327624171,1716256261603,-500.0,0.00044383,42]
[327624172,1716256261614,-358.20984672,0.00044383,42]
[327624173,1716256261623,-603.81,0.00044383,42]
[327624174,1716256261633,-854.22,0.00044383,42]
[327624175,1716256261642,-1298.13,0.00044383,42]
[327624176,1716256261651,-686.9,0.00044383,42]
[327624177,1716256261660,-500.0,0.00044383,42]
[327624178,1716256261669,-1283.07,0.00044383,42]
[327624179,1716256261679,-500.0,0.00044383,42]
[327624180,1716256261688,-457.77359209,0.00044383,42]
[327624181,1716256261697,-1928.09,0.00044383,42]
[327624182,1716256261706,-1521.93,0.00044383,42]
[327624183,1716256261715,-500.0,0.00044383,42]
[327624184,1716256261725,-500.0,0.00044383,42]
[327624185,1716256261735,-500.0,0.00044383,42]
[327624186,1716256261744,-500.0,0.00044383,42]
[327624187,1716256261825,-500.0,0.00044383,42]
[327624188,1716256261841,-3265.34,0.00044383,42]
[327624189,1716256261851,-500.0,0.00044383,42]
[327624190,1716256261860,-962.63,0.00044383,42]
[327624191,1716256261870,-500.0,0.00044383,42]
[327624192,1716256261880,-558.02488022,0.00044383,42]
[327624193,1716256261889,-500.0,0.00044383,42]
[327624194,1716256261899,-19738.08,0.00044383,42]
[327624195,1716256261909,-500.0,0.00044383,42]
[327624196,1716256261917,-500.0,0.00044383,30]
[327624197,1716256261926,-711.64,0.00044383,42]
[327624198,1716256261935,-2017.3,0.00044383,42]
[327624199,1716256261944,-500.0,0.00044383,42]
[327624200,1716256261953,-1090.23,0.00044383,42]
[327624201,1716256261962,-500.0,0.00044383,42]
[327624202,1716256261972,-1090.8,0.00044383,42]
[327624203,1716256261981,-500.0,0.00044383,42]
[327624204,1716256261992,-774.07,0.00044383,42]
[327624205,1716256262001,-500.0,0.00044383,42]
[327624206,1716256262011,-500.0,0.00044383,42]
[327624207,1716256262020,-2075.97,0.00044383,42]
[327624208,1716256262029,-500.0,0.00044383,42]
[327624209,1716256262038,-500.0,0.00044383,42]
[327624210,1716256262048,-695.68,0.00044383,42]
[327624211,1716256262057,-269.0,0.00044383,30]
[327624212,1716256262066,-846.21,0.00044383,42]
[327624213,1716256262075,-500.0,0.00044383,42]
[327624214,1716256262085,-500.0,0.00044383,42]
[327624215,1716256262094,-200.48705416,0.00044383,42]
[327624216,1716256262104,-226.99821499,0.00044383,42]
[327624217,1716256262113,-500.0,0.00044383,42]
[327624218,1716256262122,-296.41222155,0.00044561,7]
[327624219,1716256262132,-160.0,0.000446,30]
[327624220,1716256262141,-821.0,0.000446,20]
[327624221,1716256262150,-223.0,0.0004463,35]
[327624222,1716256262160,-223.0,0.0004464,35]
[327624223,1716256262169,-150.5,0.0004464,35]
[327624224,1716256262178,-223.0,0.0004465,35]
[327624225,1716256262187,-150.5,0.0004465,35]
[327624226,1716256262197,-163.0,0.00044657,69]
[327624227,1716256262206,-399.0,0.00044657,69]
[327624228,1716256262216,-502.5519854,0.00044657,43]
[327624229,1716256262225,-500.0,0.00044657,43]
[327624230,1716256262234,-507.87363672,0.00044657,43]
[327624231,1716256262243,-500.0,0.00044657,43]
[327624232,1716256262252,-767.25,0.00044657,43]
[327624233,1716256262261,-500.0,0.00044657,43]
[327624234,1716256262270,-500.0,0.00044657,43]
[327624235,1716256262280,-837.43,0.00044657,43]
[327624236,1716256262289,-650.81,0.00044657,43]
[327624237,1716256262298,-500.0,0.00044657,43]
[327624238,1716256262307,-513.51986689,0.00044657,43]
[327624239,1716256262316,-500.0,0.00044657,43]
[327624240,1716256262326,-597.94,0.00044657,43]
[327624241,1716256262335,-500.0,0.00044657,43]
[327624242,1716256262344,-500.0,0.00044657,43]
[327624243,1716256262353,-500.0,0.00044657,43]
[327624244,1716256262363,-500.0,0.00044657,43]
[327624245,1716256262372,-500.0,0.00044657,43]
[327624246,1716256262381,-500.0,0.00044657,43]
[327624247,1716256262390,-534.82623028,0.00044657,43]
[327624248,1716256262399,-500.0,0.00044657,43]
[327624249,1716256262409,-500.0,0.00044657,43]
[327624250,1716256262418,-500.0,0.00044657,43]
[327624251,1716256262427,-248.14482675,0.00044657,43]
[327624252,1716256262437,-502.70447201,0.00044657,43]
[327624253,1716256262447,-625.61611766,0.00044657,43]
[327624254,1716256262456,-500.0,0.00044657,43]
[327624255,1716256262466,-500.0,0.00044657,43]
[327624256,1716256262475,-559.54,0.00044657,43]
[327624257,1716256262485,-622.99,0.00044657,43]
[327624258,1716256262494,-500.0,0.00044657,43]
[327624259,1716256262503,-500.0,0.00044657,43]
[327624260,1716256262518,-500.0,0.00044657,43]
[327624261,1716256262527,-500.0,0.00044657,43]
[327624262,1716256262536,-500.0,0.00044657,43]
[327624263,1716256262546,-500.0,0.00044657,43]
[327624264,1716256262557,-500.0,0.00044657,43]
[327624265,1716256262567,-500.0,0.00044657,43]
[327624266,1716256262576,-500.0,0.00044657,43]
[327624267,1716256262585,-500.0,0.00044657,43]
[327624268,1716256262604,-500.0,0.00044657,43]
[327624269,1716256262618,-789.44,0.00044657,43]
[327624270,1716256262628,-540.7,0.00044657,43]
[327624271,1716256262637,-500.0,0.00044657,43]
[327624272,1716256262646,-596.6,0.00044657,43]
[327624273,1716256262655,-500.0,0.00044657,43]
[327624274,1716256262664,-500.0,0.00044657,43]
[327624275,1716256262673,-702.31,0.00044657,43]
[327624276,1716256262683,-649.98547318,0.00044657,43]
[327624277,1716256262692,-500.0,0.00044657,43]
[327624278,1716256262701,-985.17,0.00044657,43]
[327624279,1716256262711,-1198.71,0.00044657,43]
[327624280,1716256262720,-500.0,0.00044657,2]
[327624281,1716256262730,-500.0,0.00044657,43]
[327624282,1716256262741,-500.0,0.00044657,43]
[327624283,1716256262750,-500.0,0.00044657,43]
[327624284,1716256262759,-889.02,0.00044657,43]
[327624285,1716256262769,-698.24,0.00044657,43]
[327624286,1716256262778,-500.0,0.00044657,43]
[327624287,1716256262787,-676.37,0.00044657,43]
[327624288,1716256262796,-500.0,0.00044657,43]
[327624289,1716256262806,-724.9,0.00044657,43]
[327624290,1716256262815,-803.48,0.00044657,43]
[327624291,1716256262824,-500.0,0.00044657,43]
[327624292,1716256262833,-500.0,0.00044657,43]
[327624293,1716256262842,-500.0,0.00044657,43]
[327624294,1716256262851,-503.74802448,0.00044657,43]
[327624296,1716256262861,-500.0,0.00044657,43]
[327624297,1716256262870,-500.0,0.00044657,43]
[327624298,1716256262879,-820.9,0.00044657,43]
[327624299,1716256262888,-500.0,0.00044657,43]
[327624300,1716256262898,-655.92,0.00044657,43]
[327624301,1716256262907,-500.0,0.00044657,43]
[327624302,1716256262916,-500.0,0.00044657,43]
[327624303,1716256262926,-500.0,0.00044657,43]
[327624304,1716256262935,-500.0,0.00044657,43]
[327624305,1716256262945,-671.89,0.00044657,43]
[327624306,1716256262954,-520.46,0.00044657,43]
[327624307,1716256262963,-500.0,0.00044657,43]
[327624308,1716256262972,-723.43,0.00044657,43]
[327624309,1716256262982,-500.0,0.00044657,43]
[327624310,1716256262993,-500.0,0.00044657,43]
[327624311,1716256263002,-949.87,0.00044657,43]
[327624312,1716256263011,-684.86,0.00044657,43]
[327624313,1716256263020,-778.84,0.00044657,43]
[327624314,1716256263030,-723.49,0.00044657,43]
[327624315,1716256263039,-500.0,0.00044657,43]
[327624316,1716256263048,-797.35,0.00044657,43]
[327624317,1716256263057,-861.17,0.00044657,43]
[327624318,1716256263066,-994.81,0.00044657,43]
[327624321,1716256263152,-500.0,0.00044657,43]
[327624322,1716256263163,-736.19,0.00044657,43]
[327624323,1716256263172,-500.0,0.00044657,43]
[327624324,1716256263182,-500.0,0.00044657,43]